[Event "GER-ch Youth U14 2020"]
[Site "Willingen"]
[Date "2020.10.23"]
[Round "6.18"]
[White "Meuer, David"]
[Black "Niemann, Leon"]
[Result "1/2-1/2"]
[ECO "B22"]
[WhiteElo "1632"]
[BlackElo "1880"]
[Annotator "NA RC"]
[PlyCount "152"]
[EventDate "2020.10.20"]
[EventType "swiss"]
[EventRounds "7"]
[EventCountry "GER"]
[SourceTitle "playchess.com"]
[Source "ChessBase"]
[SourceQuality "1"]
[TimeControl "40/5400+30:1800+30"]

1. e4 {[%emt 0:00:00]} c5 {[%emt 0:00:00]} 2. c3 {[%emt 0:00:00]} Nf6 {[%emt 0:00:00]} 3. e5 {[%emt 0:00:00]} Nd5 {[%emt 0:00:00]} 4. d4 {[%emt 0:00:00]} cxd4 {[%emt 0:00:00]} 5. cxd4 {[%emt 0:00:02]} Nc6 {[%emt 0:00:00]} 6. Nf3 {[%emt 0:00:07]} g6 {[%emt 0:00:37]} 7. Bc4 {[%emt 0:01:07]} Nb6 {[%emt 0:00:07]} 8. Bb3 {[%emt 0:02:49]} Bg7 {[%emt 0:04:14]} 9. O-O {[%emt 0:03:15]} O-O {[%emt 0:00:41]} 10. Nc3 {[%emt 0:02:01]} d6 {[%emt 0:03:27] B22: Sicilian: 2 c3.} 11. Bf4 {[%emt 0:19:45]} Bg4 {[%emt 0:05:12]} 12. Re1 {[%emt 0:12:40]} Bxf3 {[%emt 0:11:11]} 13. Qxf3 {[%emt 0:02:01]} Nxd4 {[%emt 0:10:14]} 14. Qxb7 {[%emt 0:01:14] [#]} Rb8 $146 {[%emt 0:15:22]} ({Predecessor:} 14... a5 15. exd6 exd6 16. Rad1 a4 17. Bd5 Rb8 18. Qa7 a3 19. Qxa3 Nxd5 20. Nxd5 Rxb2 21. Ne7+ Kh8 22. Bh6 Re2 23. Bxg7+ Kxg7 24. Qc3 {½-½ (24) Elier,A (1885)-Wendler,D (2107) Walldorf 2017}) 15. Qe4 {[%emt 0:02:51]} Nxb3 {[%emt 0:08:12]} 16. axb3 {[%emt 0:00:13]} dxe5 {[%emt 0:00:42]} 17. Bxe5 {[%emt 0:00:14]} Bxe5 {[%emt 0:01:56]} 18. Qxe5 {[%emt 0:00:15]} Rb7 {[%emt 0:00:13]} 19. h4 {[%emt 0:09:13]} Qb8 {[%emt 0:03:57]} 20. Qg5 {[%emt 0:05:40]} Nc8 {[%emt 0:11:15]} 21. h5 {[%emt 0:10:20]} Rxb3 {[%emt 0:00:16]} 22. Nd5 {[%emt 0:00:53]} Rxb2 {[%emt 0:06:39]} 23. Rxe7 {[%emt 0:03:30]} Rxf2 $1 {[%emt 0:02:08]} 24. Kxf2 {[%emt 0:05:45]} Qb2+ {[%emt 0:00:08]} 25. Kg3 {[%emt 0:02:16]} Qxa1 {[%emt 0:03:23]} 26. Nf6+ {[%emt 0:05:57]} Kg7 {[%emt 0:04:37]} 27. Ne8+ {[%emt 0:02:52]} Kg8 {[%emt 0:08:11]} 28. Nf6+ {[%emt 0:00:54]} Kg7 {[%emt 0:00:05]} 29. Ne8+ {[%emt 0:00:05]} Kh8 {[%emt 0:00:04]} 30. Qh6 {[%emt 0:02:56]} Nxe7 {[%emt 0:00:02]} 31. Qxf8+ {[%emt 0:00:31]} Ng8 {[%emt 0:00:01]} 32. Qxf7 {[%emt 0:00:41]} Qe5+ {[%emt 0:01:39]} 33. Kh3 {[%emt 0:00:48]} Qf5+ {[%emt 0:01:06]} 34. Qxf5 {[%emt 0:00:16]} gxf5 {[%emt 0:00:01]} 35. Nd6 {[%emt 0:01:37]} a5 {[%emt 0:00:54]} 36. Nxf5 {[%emt 0:00:40]} a4 {[%emt 0:00:05]} 37. Ne3 {[%emt 0:00:22]} a3 {[%emt 0:00:16]} 38. Nc2 {[%emt 0:00:14]} a2 {[%emt 0:00:01]} 39. Kg3 {[%emt 0:01:03]} Nf6 {[%emt 0:01:40]} 40. Kh4 {[%emt 0:01:54]} Kg7 {[%emt 0:00:26]} 41. g4 {[%emt 0:30:45]} Nd5 {[%emt 0:04:03]} 42. g5 {[%emt 0:00:00]} Kf8 {[%emt 0:00:11]} 43. Kg3 {[%emt 0:00:00]} Ke7 {[%emt 0:02:18]} 44. Kf3 $1 {[%emt 0:00:00]} Kd6 {[%emt 0:01:51]} 45. Ke4 {[%emt 0:00:00]} Ne7 {[%emt 0:18:22]} 46. Kd4 {[%emt 0:00:00]} Ke6 {[%emt 0:01:53]} 47. g6 $11 {[%emt 0:00:00]} Nxg6 {[%emt 0:03:09]} 48. Kc3 {[%emt 0:00:00]} Nf4 {[%emt 0:00:54]} 49. Kb2 {[%emt 0:00:00]} Nxh5 {[%emt 0:00:07]} 50. Kxa2 {[%emt 0:00:00]} Nf4 {[%emt 0:00:40]} 51. Kb1 {[%emt 0:00:00]} h5 {[%emt 0:02:14]} 52. Nd4+ {[%emt 0:00:00]} Kd5 {[%emt 0:00:07]} 53. Nf3 {[%emt 0:00:00]} Ng2 {[%emt 0:00:39]} 54. Kc1 {[%emt 0:00:00]} Ke4 {[%emt 0:00:03]} 55. Ng5+ {[%emt 0:00:00]} Kf4 {[%emt 0:01:10]} 56. Nh3+ {[%emt 0:00:00]} Kg3 {[%emt 0:00:36]} 57. Ng5 {[%emt 0:00:00]} h4 {[%emt 0:00:06]} 58. Kd2 {[%emt 0:00:33]} Kf4 {[%emt 0:00:54]} 59. Nh3+ {[%emt 0:00:38]} Kg4 {[%emt 0:00:29]} 60. Ng1 {[%emt 0:01:25]} Kg3 {[%emt 0:00:38]} 61. Ke2 {[%emt 0:01:41]} Nf4+ {[%emt 0:00:09]} 62. Kf1 {[%emt 0:01:32]} Nd3 {[%emt 0:00:29]} 63. Ne2+ {[%emt 0:02:27]} Kh2 {[%emt 0:00:50]} 64. Ng1 {[%emt 0:00:25]} Ne5 {[%emt 0:00:34]} 65. Kf2 {[%emt 0:01:56]} Nd3+ {[%emt 0:00:27]} 66. Kf1 {[%emt 0:00:14]} Kg3 {[%emt 0:00:14]} 67. Ne2+ {[%emt 0:00:22]} Kg4 {[%emt 0:00:21]} 68. Ng1 {[%emt 0:00:45]} Ne5 {[%emt 0:00:57]} 69. Kf2 {[%emt 0:00:39]} Nc4 {[%emt 0:00:28]} 70. Kg2 {[%emt 0:00:42]} Nd6 {[%emt 0:00:07]} 71. Kf2 {[%emt 0:00:21]} Nf5 {[%emt 0:00:31]} 72. Kg2 {[%emt 0:00:40]} Ne7 {[%emt 0:00:23]} 73. Kf2 {[%emt 0:00:11]} Ng6 {[%emt 0:00:08]} 74. Kg2 {[%emt 0:01:28]} Kf4 {[%emt 0:00:06]} 75. Nf3 {[%emt 0:00:22]} Ke3 {[%emt 0:01:35]} 76. Nxh4 {[%emt 0:00:13]} Nxh4+ 1/2-1/2

[Event "GER-ch Youth U14 2020"]
[Site "Willingen"]
[Date "2020.10.23"]
[Round "6.19"]
[White "Mimkes, Antal"]
[Black "Pfeffer, Samuel"]
[Result "1/2-1/2"]
[ECO "C30"]
[WhiteElo "1567"]
[BlackElo "1427"]
[Annotator "NA"]
[PlyCount "112"]
[EventDate "2020.10.20"]
[EventType "swiss"]
[EventRounds "7"]
[EventCountry "GER"]
[SourceTitle "playchess.com"]
[Source "ChessBase"]
[SourceQuality "1"]
[TimeControl "40/5400+30:1800+30"]

1. e4 {[%emt 0:00:00]} e5 {[%emt 0:00:00]} 2. f4 {[%emt 0:00:00]} Bc5 {[%emt 0:01:05]} 3. Nf3 {[%emt 0:00:26]} d6 {[%emt 0:01:28]} 4. Bc4 {[%emt 0:00:58]} Nc6 {[%emt 0:01:35]} 5. Nc3 {[%emt 0:01:22]} Nf6 {[%emt 0:02:25]} 6. d3 {[%emt 0:01:34]} Bg4 {[%emt 0:03:47]} 7. h3 {[%emt 0:01:14]} Bxf3 {[%emt 0:00:51]} 8. Qxf3 {[%emt 0:00:20]} Nd4 {[%emt 0:04:17]} 9. Qd1 {[%emt 0:00:38]} Nd7 {[%emt 0:01:28]} 10. g3 {[%emt 0:03:04]} c6 {[%emt 0:04:32]} 11. Na4 {[%emt 0:02:10]} Qa5+ {[%emt 0:01:51]} 12. c3 {[%emt 0:00:34]} b5 {[%emt 0:22:34]} 13. Nxc5 {[%emt 0:07:36]} dxc5 {[%emt 0:00:03]} 14. Bd2 {[%emt 0:03:27]} Nc2+ {[%emt 0:02:54]} 15. Qxc2 {[%emt 0:00:35]} bxc4 {[%emt 0:00:26]} 16. dxc4 {[%emt 0:01:18]} exf4 {[%emt 0:05:02]} 17. Bxf4 {[%emt 0:00:20]} O-O {[%emt 0:01:42]} 18. O-O {[%emt 0:01:29]} Rfe8 {[%emt 0:03:27]} 19. Bd6 {[%emt 0:02:13]} Re6 {[%emt 0:02:19]} 20. Qf2 {[%emt 0:08:40]} f6 {[%emt 0:03:31]} 21. Qf4 {[%emt 0:08:01]} Rae8 {[%emt 0:03:40]} 22. Bc7 {[%emt 0:03:29]} Qa6 {[%emt 0:01:56]} 23. Qd2 {[%emt 0:06:07]} Qc8 {[%emt 0:04:10]} 24. Bf4 {[%emt 0:03:28]} Nb6 {[%emt 0:01:44]} 25. b3 {[%emt 0:02:53]} Rxe4 {[%emt 0:01:25]} 26. Rae1 {[%emt 0:01:26]} a5 {[%emt 0:02:04]} 27. Rxe4 {[%emt 0:01:05]} Rxe4 {[%emt 0:00:02]} 28. Re1 {[%emt 0:02:21]} Rxe1+ {[%emt 0:03:47]} 29. Qxe1 {[%emt 0:01:03]} Qd7 {[%emt 0:01:44]} 30. Bc7 {[%emt 0:01:32]} Nc8 {[%emt 0:01:58]} 31. Bxa5 {[%emt 0:01:13]} Kf7 {[%emt 0:00:45]} 32. Kg2 {[%emt 0:01:33]} Qd3 {[%emt 0:03:17]} 33. Qf2 {[%emt 0:03:45]} Nd6 {[%emt 0:02:06]} 34. Kh2 {[%emt 0:03:55]} Ne4 {[%emt 0:01:40]} 35. Qg2 {[%emt 0:01:24]} Ng5 {[%emt 0:00:52]} 36. Qf2 {[%emt 0:05:04]} Ne4 {[%emt 0:03:06]} 37. Qe1 {[%emt 0:01:37]} Ng5 {[%emt 0:02:23]} 38. Kg2 {[%emt 0:03:49]} Qf3+ {[%emt 0:01:19]} 39. Kg1 {[%emt 0:02:50]} Nxh3+ {[%emt 0:00:19]} 40. Kh2 {[%emt 0:00:07]} Ng5 {[%emt 0:00:32]} 41. Bc7 {[%emt 0:33:53]} Qd3 {[%emt 0:35:17]} 42. Kg2 {[%emt 0:01:10]} Qf3+ {[%emt 0:00:00]} 43. Kg1 {[%emt 0:00:00]} Qg4 {[%emt 0:00:00]} 44. Qf1 {[%emt 0:00:00]} Ne4 {[%emt 0:00:00]} 45. Qd3 {[%emt 0:00:00]} h5 {[%emt 0:00:00]} 46. Kf1 {[%emt 0:00:00]} h4 {[%emt 0:00:00]} 47. gxh4 {[%emt 0:00:00]} Qxh4 {[%emt 0:00:00]} 48. Ke2 {[%emt 0:00:00]} Qf2+ {[%emt 0:00:00]} 49. Kd1 {[%emt 0:00:00]} Qg2 {[%emt 0:00:00]} 50. Kc1 {[%emt 0:00:00]} Qg1+ {[%emt 0:00:00]} 51. Kb2 {[%emt 0:00:00]} Qe1 {[%emt 0:00:00]} 52. a4 {[%emt 0:00:00]} Nf2 {[%emt 0:00:00]} 53. Qc2 {[%emt 0:00:00]} Nd1+ {[%emt 0:00:00]} 54. Ka3 {[%emt 0:00:00]} Nxc3 {[%emt 0:00:00]} 55. Kb2 {[%emt 0:00:00]} Nd1+ {[%emt 0:00:00]} 56. Ka2 {[%emt 0:00:00]} Nc3+ {[%emt 0:00:00]} 1/2-1/2

[Event "GER-ch Youth U14 2020"]
[Site "Willingen"]
[Date "2020.10.23"]
[Round "6.20"]
[White "Ehrig, Leon Chris"]
[Black "Brunner, Alexander"]
[Result "1-0"]
[ECO "B21"]
[WhiteElo "1718"]
[BlackElo "1692"]
[Annotator "NA RC"]
[PlyCount "56"]
[EventDate "2020.10.20"]
[EventType "swiss"]
[EventRounds "7"]
[EventCountry "GER"]
[SourceTitle "playchess.com"]
[Source "ChessBase"]
[SourceQuality "1"]
[TimeControl "40/5400+30:1800+30"]

1. e4 {[%emt 0:00:00]} c5 {[%emt 0:00:00]} 2. d4 {[%emt 0:00:00]} cxd4 {[%emt 0:00:20]} 3. c3 {[%emt 0:00:00]} dxc3 {[%emt 0:00:24]} 4. Nxc3 {[%emt 0:00:00]} Nc6 {[%emt 0:04:19]} 5. Nf3 {[%emt 0:00:04]} e5 {[%emt 0:05:41]} 6. Bc4 {[%emt 0:00:23]} a6 {[%emt 0:05:43]} 7. O-O {[%emt 0:01:22]} b5 {[%emt 0:01:02]} 8. Bb3 {[%emt 0:01:22]} Bc5 {[%emt 0:01:34]} 9. Bxf7+ {[%emt 0:00:36]} Kf8 {[%emt 0:10:50]} 10. Bd5 {[%emt 0:02:13]} Qc7 {[%emt 0:00:41]} 11. a3 {[%emt 0:05:31]} Bb7 {[%emt 0:13:48]} 12. b4 {[%emt 0:01:48]} Bd4 {[%emt 0:01:38]} 13. Bb2 {[%emt 0:04:30]} Rd8 {[%emt 0:00:51]} 14. Rc1 {[%emt 0:00:40]} Qb6 {[%emt 0:02:51]} 15. Bxg8 {[%emt 0:03:08]} Rxg8 {[%emt 0:00:46]} 16. Nd5 {[%emt 0:00:30]} Qa7 {[%emt 0:00:13]} 17. Nxd4 {[%emt 0:00:44]} Nxd4 {[%emt 0:02:21]} 18. Bxd4 {[%emt 0:00:08]} Qxd4 {[%emt 0:00:10]} 19. Qf3+ {[%emt 0:02:13]} Ke8 {[%emt 0:02:30]} 20. Rfd1 {[%emt 0:00:33]} Qb2 {[%emt 0:01:26]} 21. Qh5+ {[%emt 0:01:01]} g6 {[%emt 0:00:44]} 22. Qxh7 {[%emt 0:04:10]} Bxd5 {[%emt 0:00:10]} 23. exd5 {[%emt 0:00:05]} Kf8 {[%emt 0:05:43]} 24. d6 {[%emt 0:02:03]} Re8 {[%emt 0:00:31]} 25. Qxd7 {[%emt 0:00:54]} Rg7 {[%emt 0:01:28]} 26. Qg4 {[%emt 0:01:22]} Rf7 {[%emt 0:01:59]} 27. Qh4 {[%emt 0:00:46]} Kg7 {[%emt 0:00:21]} 28. d7 {[%emt 0:00:22]} Rxd7 1-0

[Event "GER-ch Youth U14 2020"]
[Site "Willingen"]
[Date "2020.10.23"]
[Round "6.21"]
[White "Wiedersich, Hendryk"]
[Black "Raasch, Hauke"]
[Result "0-1"]
[ECO "B18"]
[WhiteElo "1570"]
[BlackElo "1676"]
[Annotator "NA"]
[PlyCount "77"]
[EventDate "2020.10.20"]
[EventType "swiss"]
[EventRounds "7"]
[EventCountry "GER"]
[SourceTitle "playchess.com"]
[Source "ChessBase"]
[SourceQuality "1"]
[TimeControl "40/5400+30:1800+30"]

1. d4 {[%emt 0:00:00]} d5 {[%emt 0:00:00]} 2. Nc3 {[%emt 0:00:00]} c6 {[%emt 0:00:00]} 3. e4 {[%emt 0:00:10]} dxe4 {[%emt 0:00:00]} 4. Nxe4 {[%emt 0:00:11]} Bf5 {[%emt 0:00:05]} 5. Ng3 {[%emt 0:00:26]} Bg6 {[%emt 0:00:05]} 6. Nf3 {[%emt 0:01:32]} Nd7 {[%emt 0:00:04]} 7. Bd3 {[%emt 0:00:17]} Bxd3 {[%emt 0:01:10]} 8. Qxd3 {[%emt 0:00:08]} e6 {[%emt 0:00:39]} 9. c3 {[%emt 0:00:29]} Ngf6 {[%emt 0:01:44]} 10. Bg5 {[%emt 0:00:56]} Be7 {[%emt 0:00:41]} 11. O-O-O {[%emt 0:00:25]} Qc7 {[%emt 0:09:37]} 12. Bxf6 {[%emt 0:10:57]} Nxf6 {[%emt 0:02:01]} 13. Ne5 {[%emt 0:02:42]} Nd7 {[%emt 0:03:46]} 14. Rhe1 {[%emt 0:04:29]} O-O-O {[%emt 0:06:49]} 15. Qe4 {[%emt 0:08:40]} Nxe5 {[%emt 0:01:34]} 16. Qxe5 {[%emt 0:01:33]} Qxe5 {[%emt 0:00:59]} 17. dxe5 {[%emt 0:00:22]} Rxd1+ {[%emt 0:02:06]} 18. Kxd1 {[%emt 0:03:00]} Rd8+ {[%emt 0:00:27]} 19. Kc2 {[%emt 0:00:13]} Rd5 {[%emt 0:02:45]} 20. f4 {[%emt 0:00:56]} c5 {[%emt 0:20:03]} 21. Re3 {[%emt 0:10:18]} c4 {[%emt 0:02:54]} 22. Ne2 {[%emt 0:01:28]} Bc5 {[%emt 0:02:43]} 23. Re4 {[%emt 0:03:22]} b5 {[%emt 0:01:33]} 24. a4 {[%emt 0:01:06]} a6 {[%emt 0:01:24]} 25. axb5 {[%emt 0:02:11]} axb5 {[%emt 0:00:09]} 26. Nd4 {[%emt 0:00:31]} Bxd4 {[%emt 0:04:39]} 27. Rxd4 {[%emt 0:01:38]} Rxd4 {[%emt 0:11:41]} 28. cxd4 {[%emt 0:00:09]} b4 {[%emt 0:00:04]} 29. Kd2 {[%emt 0:00:10]} Kd7 {[%emt 0:00:08]} 30. Ke3 {[%emt 0:00:35]} Kc6 {[%emt 0:00:06]} 31. Ke4 {[%emt 0:00:11]} b3 {[%emt 0:00:15]} 32. d5+ {[%emt 0:00:44]} exd5+ {[%emt 0:01:50]} 33. Kd4 {[%emt 0:00:08]} h5 {[%emt 0:02:19]} 34. g3 {[%emt 0:09:23]} Kd7 {[%emt 0:00:22]} 35. h3 {[%emt 0:00:37]} Ke6 {[%emt 0:00:07]} 36. g4 {[%emt 0:00:08]} hxg4 {[%emt 0:00:04]} 37. hxg4 {[%emt 0:00:04]} g6 {[%emt 0:00:03]} 38. Kc3 g5 39. f5+ 0-1

[Event "GER-ch Youth U14 2020"]
[Site "Willingen"]
[Date "2020.10.23"]
[Round "6.22"]
[White "Bock, Marlon"]
[Black "Lerchl, Clemens"]
[Result "1/2-1/2"]
[ECO "A48"]
[WhiteElo "1776"]
[BlackElo "1699"]
[Annotator "NA"]
[PlyCount "56"]
[EventDate "2020.10.20"]
[EventType "swiss"]
[EventRounds "7"]
[EventCountry "GER"]
[SourceTitle "playchess.com"]
[Source "ChessBase"]
[SourceQuality "1"]
[TimeControl "40/5400+30:1800+30"]

1. d4 {[%emt 0:00:00]} Nf6 {[%emt 0:00:00]} 2. Nf3 {[%emt 0:00:00]} g6 {[%emt 0:00:00]} 3. Nc3 {[%emt 0:00:00]} d5 {[%emt 0:00:00]} 4. Bf4 {[%emt 0:00:17]} Bg7 {[%emt 0:00:00]} 5. Qd2 {[%emt 0:00:45]} O-O {[%emt 0:00:07]} 6. Bh6 {[%emt 0:00:57]} c5 {[%emt 0:02:44]} 7. Bxg7 {[%emt 0:02:33]} Kxg7 {[%emt 0:00:06]} 8. dxc5 {[%emt 0:01:42]} Qa5 {[%emt 0:00:25]} 9. Ne4 {[%emt 0:05:42]} Qxd2+ {[%emt 0:05:13]} 10. Nexd2 {[%emt 0:00:06]} Na6 {[%emt 0:01:47]} 11. Nb3 {[%emt 0:03:59]} Ne4 {[%emt 0:05:20]} 12. e3 {[%emt 0:04:28]} Naxc5 {[%emt 0:05:12]} 13. Nxc5 {[%emt 0:02:09]} Nxc5 {[%emt 0:00:36]} 14. Rd1 {[%emt 0:01:54]} e6 {[%emt 0:07:01]} 15. Be2 {[%emt 0:02:19]} b6 {[%emt 0:04:00]} 16. Nd4 {[%emt 0:07:28]} Ba6 {[%emt 0:03:53]} 17. Nb5 {[%emt 0:02:26]} Bxb5 {[%emt 0:12:27]} 18. Bxb5 {[%emt 0:00:37]} a6 {[%emt 0:00:32]} 19. Be2 {[%emt 0:01:19]} Na4 {[%emt 0:03:14]} 20. Rb1 {[%emt 0:04:42]} Rfc8 {[%emt 0:01:29]} 21. c3 {[%emt 0:07:53]} b5 {[%emt 0:01:36]} 22. O-O {[%emt 0:00:57]} Nb6 {[%emt 0:01:04]} 23. Rfd1 {[%emt 0:03:19]} Nc4 {[%emt 0:03:55]} 24. Kf1 {[%emt 0:04:29]} Rab8 {[%emt 0:05:07]} 25. Ke1 {[%emt 0:04:52]} b4 {[%emt 0:12:41]} 26. Bxc4 {[%emt 0:08:29]} Rxc4 {[%emt 0:09:45]} 27. cxb4 {[%emt 0:01:23]} Rbxb4 {[%emt 0:01:19]} 28. b3 {[%emt 0:00:50]} Rc5 {[%emt 0:05:13]} 1/2-1/2

[Event "GER-ch Youth U14 2020"]
[Site "Willingen"]
[Date "2020.10.24"]
[Round "7.9"]
[White "Kageler, Anton Paul"]
[Black "Hecht, Jonas Christian"]
[Result "0-1"]
[ECO "B33"]
[WhiteElo "1664"]
[BlackElo "1764"]
[Annotator "NA RC"]
[PlyCount "70"]
[EventDate "2020.10.20"]
[EventType "swiss"]
[EventRounds "7"]
[EventCountry "GER"]
[SourceTitle "playchess.com"]
[Source "ChessBase"]
[SourceQuality "1"]
[TimeControl "40/5400+30:1800+30"]

1. e4 {[%emt 0:00:00]} c5 {[%emt 0:00:00]} 2. Nf3 {[%emt 0:00:00]} Nc6 {[%emt 0:00:00]} 3. d4 {[%emt 0:00:04]} cxd4 {[%emt 0:00:00]} 4. Nxd4 {[%emt 0:00:15]} Nf6 {[%emt 0:00:00]} 5. Nc3 {[%emt 0:00:18]} e5 {[%emt 0:00:00]} 6. Ndb5 {[%emt 0:00:14]} d6 {[%emt 0:00:00]} 7. Bg5 {[%emt 0:00:20]} a6 {[%emt 0:00:16]} 8. Na3 {[%emt 0:00:11]} b5 {[%emt 0:00:05]} 9. Nd5 {[%emt 0:00:17]} Be7 {[%emt 0:00:22]} 10. Bxf6 {[%emt 0:00:30]} Bxf6 {[%emt 0:00:20]} 11. c3 {[%emt 0:00:13]} Bg5 {[%emt 0:04:41]} 12. Nc2 {[%emt 0:00:32]} Rb8 {[%emt 0:04:32]} 13. a4 {[%emt 0:17:32]} bxa4 {[%emt 0:07:01]} 14. Ncb4 {[%emt 0:07:47]} Bd7 {[%emt 0:12:22]} 15. Bxa6 {[%emt 0:14:14]} Na5 {[%emt 0:02:57]} 16. Qc2 {[%emt 0:06:39]} O-O {[%emt 0:08:31]} 17. O-O Nb3 {[%emt 0:08:54]} 18. Rad1 {[%emt 0:02:51]} Nc5 {[%emt 0:00:15]} 19. Bc4 {[%emt 0:02:13]} Kh8 {[%emt 0:13:40]} 20. Ne3 {[%emt 0:08:48]} Bxe3 {[%emt 0:02:10]} 21. fxe3 {[%emt 0:00:07]} Qg5 {[%emt 0:10:29]} 22. Rxd6 {[%emt 0:16:25]} Qxe3+ {[%emt 0:04:33]} 23. Kh1 {[%emt 0:00:25]} Bg4 {[%emt 0:02:22]} 24. Bd5 {[%emt 0:05:26]} f5 {[%emt 0:03:54]} 25. Qf2 {[%emt 0:03:27]} Qxf2 {[%emt 0:00:22]} 26. Rxf2 {[%emt 0:00:03]} fxe4 {[%emt 0:00:08]} 27. Rxf8+ {[%emt 0:00:47]} Rxf8 {[%emt 0:00:05]} 28. h3 {[%emt 0:03:02]} Bd1 {[%emt 0:02:23]} 29. Bc4 {[%emt 0:02:16]} Bb3 {[%emt 0:02:54]} 30. Bxb3 {[%emt 0:00:30]} axb3 {[%emt 0:01:41]} 31. Rd5 {[%emt 0:01:56]} Na4 {[%emt 0:00:57]} 32. Rxe5 {[%emt 0:01:40]} Nxb2 {[%emt 0:00:50]} 33. Rxe4 {[%emt 0:00:55]} g6 {[%emt 0:01:20]} 34. Re1 {[%emt 0:00:45]} Rd8 {[%emt 0:02:17]} 35. Kg1 {[%emt 0:04:04]} Nd1 {[%emt 0:00:12]} 0-1

[Event "GER-ch Youth U14 2020"]
[Site "Willingen"]
[Date "2020.10.24"]
[Round "7.10"]
[White "Bungarten, Jona"]
[Black "Fuhrmann, Bahne"]
[Result "1/2-1/2"]
[ECO "C36"]
[WhiteElo "1834"]
[BlackElo "1816"]
[Annotator "NA RC"]
[PlyCount "98"]
[EventDate "2020.10.20"]
[EventType "swiss"]
[EventRounds "7"]
[EventCountry "GER"]
[SourceTitle "playchess.com"]
[Source "ChessBase"]
[SourceQuality "1"]
[TimeControl "40/5400+30:1800+30"]

{[%evp 12,91,-19,-22,-17,-25,-8,-14,-1,0,-12,-25,-10,-3,-8,-7,13,13,31,47,43,35,66,32767,46,66,211,32767,32767,0,10,0,32767,32767,32767,32767,32767,20,9,32767,32767,0,32767,-47,32767,-74,0,32767,32767,0,0,32767,39,32767,32767,-62,32767,-575,115,0,32767,32767,32767,32767,32767,0,32767,32767,32767,32767,32767,32767,32767,32767,32767,32767,8,0,6,0,0,-48]} 1. e4 {[%emt 0:00:00]} e5 {[%emt 0:00:00]} 2. f4 {[%emt 0:00:00]} d5 {[%emt 0:00:00]} 3. exd5 {[%emt 0:00:00]} exf4 {[%emt 0:00:00]} 4. Nf3 {[%emt 0:00:00]} Nf6 {[%emt 0:00:05]} 5. Bc4 {[%emt 0:00:17]} Bd6 {[%emt 0:03:02]} 6. O-O {[%emt 0:01:20]} O-O $1 {[%emt 0:00:43]} 7. d4 {[%emt 0:01:11]} Bg4 {[%emt 0:01:41]} 8. Qd3 {[%emt 0:04:09]} c6 {[%emt 0:09:54]} 9. Nc3 {[%emt 0:04:26]} b5 {[%emt 0:05:22]} 10. Bb3 {[%emt 0:00:15]} b4 {[%emt 0:04:00]} 11. Ne2 {[%emt 0:00:13]} Nxd5 {[%emt 0:02:13]} 12. Bxd5 {[%emt 0:00:16]} cxd5 {[%emt 0:00:07]} 13. Nxf4 {[%emt 0:00:36]} Bxf4 {[%emt 0:04:56]} 14. Bxf4 {[%emt 0:00:08]} Nc6 {[%emt 0:02:05]} 15. Ng5 {[%emt 0:08:25]} g6 {[%emt 0:01:56]} 16. Qg3 {[%emt 0:01:35]} h5 {[%emt 0:05:01]} 17. c3 {[%emt 0:01:45]} bxc3 {[%emt 0:04:15]} 18. bxc3 {[%emt 0:00:40]} f6 {[%emt 0:01:16] [#]} (18... Ne7 $16 {was necessary.}) 19. Bd6 $2 {[%emt 0:05:05]} (19. Ne6 $1 $18 {[%cal Re6d8][%mdl 512]} Qd7 (19... Bxe6 20. Qxg6+) 20. Nxf8 Rxf8 21. Rae1) 19... Re8 {[%emt 0:05:57]} 20. Nf3 {[%emt 0:01:23]} Re3 {[%emt 0:07:16]} 21. Qf4 {[%emt 0:03:51]} Re6 {[%emt 0:10:13]} 22. Bc5 {[%emt 0:00:54]} Bxf3 {[%emt 0:07:16]} 23. Rxf3 {[%emt 0:00:53]} Qd7 {[%emt 0:02:48]} 24. Raf1 {[%emt 0:01:37]} Kg7 {[%emt 0:01:22]} 25. Qh4 {[%emt 0:06:14]} f5 {[%emt 0:04:51]} 26. Qg5 {[%emt 0:04:46]} Kh7 {[%emt 0:01:03]} 27. Rg3 {[%emt 0:02:04]} Qd8 {[%emt 0:01:59] [#]} 28. Qd2 $2 {[%emt 0:06:34]} (28. Rxf5 $1 $16 {[%mdl 512]} Qxg5 (28... gxf5 29. Qg7#) 29. Rfxg5) 28... Qf6 {[%emt 0:02:46]} (28... Na5 $1 $15) 29. Ba3 {[%emt 0:00:39]} Rae8 {[%emt 0:03:42]} 30. Bc1 {[%emt 0:02:10]} Qf8 {[%emt 0:00:09]} 31. Qg5 {[%emt 0:00:45]} Ne7 {[%emt 0:01:23]} (31... Nd8 $15) 32. Rh3 {[%emt 0:02:47]} Ng8 {[%emt 0:01:18]} 33. Bf4 {[%emt 0:03:51]} (33. g4 $1 $14 Qf6 34. gxf5 Qxg5+ 35. Bxg5 gxf5 $14 36. Rhf3 (36. Rxf5 Kg6 $11)) 33... Re1 {[%emt 0:02:06]} 34. Be5 $2 {[%emt 0:07:42]} (34. Rg3 $11 Rxf1+ 35. Kxf1) 34... Rxf1+ $2 {[%emt 0:00:18]} (34... R8xe5 $19 35. Rg3 Rxf1+ 36. Kxf1 Re6) 35. Kxf1 {[%emt 0:00:06]} Qh6 {[%emt 0:00:57]} 36. Bf4 {[%emt 0:03:00]} Qxg5 {[%emt 0:01:03]} 37. Bxg5 {[%emt 0:00:02]} Nh6 {[%emt 0:00:21]} 38. Re3 {[%emt 0:07:11]} Rxe3 {[%emt 0:00:52]} 39. Bxe3 {[%emt 0:00:07]} Ng4 {[%emt 0:00:03]} 40. Ke2 {[%emt 0:04:47]} Nxh2 {[%emt 0:02:39]} 41. c4 {[%emt 0:31:01]} dxc4 {[%emt 0:09:04]} 42. d5 {[%emt 0:00:00]} Ng4 {[%emt 0:01:21]} 43. Bxa7 {[%emt 0:00:00]} Nf6 {[%emt 0:06:10]} 44. d6 {[%emt 0:00:00]} Kg7 {[%emt 0:01:51]} 45. a4 {[%emt 0:00:00]} Kf7 {[%emt 0:04:22]} 46. Ke3 $15 {[%emt 0:00:00]} Ke6 {[%emt 0:04:07]} 47. Kd4 {[%emt 0:00:00]} Kxd6 {[%emt 0:01:32]} 48. Kxc4 {[%emt 0:00:00]} Kc6 {[%emt 0:00:41]} 49. Kd4 {[%emt 0:00:00]} Nd5 {[%emt 0:00:54]} 1/2-1/2